bitfinex-derivatives/quotes_ETHF0:USTF0_20260118
["timestamp","ask_amount","ask_price","bid_price","bid_amount"]
[1768700334900,0.26928416,3305.8,3305.0,0.13373554]
[1768700335207,1.739,3306.0,3305.0,0.13373554]
[1768700335410,1.32730852,3305.9,3305.0,0.13373554]
[1768700335601,1.32730852,3305.8,3305.0,0.13373554]
[1768700335801,1.739,3306.0,3305.0,0.13373554]
[1768700336002,1.32730672,3305.9,3305.0,0.13373554]
[1768700336207,1.32730672,3305.8,3305.0,0.13373554]
[1768700336408,1.739,3306.0,3305.0,0.13373554]
[1768700336605,1.32753661,3305.9,3305.0,0.13373554]
[1768700336805,1.32753661,3305.8,3305.0,0.13373554]
[1768700337005,1.739,3306.0,3305.0,0.13373554]
[1768700337205,1.32759339,3305.9,3305.0,0.13373554]
[1768700337406,1.32759339,3305.8,3305.0,0.13373554]
[1768700337607,1.739,3306.0,3305.0,0.13373554]
[1768700337813,1.32773503,3305.9,3305.0,0.13373554]
[1768700338113,1.32773503,3305.8,3305.0,0.13373554]
[1768700338310,0.26942563,3305.7,3305.0,0.13373554]
[1768700338612,1.739,3306.0,3305.0,0.13373554]
[1768700338802,1.32800404,3305.9,3305.0,0.13373554]
[1768700339111,1.32800404,3305.8,3305.0,0.13373554]
[1768700339413,0.2694738,3305.7,3305.0,0.13373554]
[1768700339715,1.739,3306.0,3305.0,0.13373554]
[1768700340011,1.32813744,3305.9,3305.0,0.13373554]
[1768700340212,1.32813744,3305.8,3305.0,0.13373554]
[1768700340409,0.26948974,3305.7,3305.0,0.13373554]
[1768700340611,1.739,3306.0,3305.0,0.13373554]
[1768700340814,1.3281606,3305.9,3305.0,0.13373554]
[1768700341019,1.3281606,3305.8,3305.0,0.13373554]
[1768700341315,0.26951787,3305.7,3305.0,0.13373554]
[1768700341513,1.739,3306.0,3305.0,0.13373554]
[1768700341814,1.32816989,3305.9,3305.0,0.13373554]
[1768700342012,1.32816989,3305.8,3305.0,0.13373554]
[1768700342313,0.2695197,3305.7,3305.0,0.13373554]
[1768700342617,1.739,3306.0,3305.0,0.13373554]
[1768700342910,1.32817046,3305.9,3305.0,0.13373554]
[1768700343110,1.32817046,3305.8,3305.0,0.13373554]
[1768700343412,0.26951985,3305.7,3305.0,0.13373554]
[1768700343608,1.739,3306.0,3305.0,0.13373554]
[1768700343808,1.32817195,3305.9,3305.0,0.13373554]
[1768700344011,1.32817195,3305.8,3305.0,0.13373554]
[1768700344211,0.26951986,3305.7,3305.0,0.13373554]
[1768700344414,1.739,3306.0,3305.0,0.13373554]
[1768700344600,1.32817858,3305.9,3305.0,0.13373554]
[1768700344802,1.32817858,3305.8,3305.0,0.13373554]
[1768700345007,0.26952124,3305.7,3305.0,0.13373554]
[1768700345213,1.739,3306.0,3305.0,0.13373554]
[1768700345512,1.32818199,3305.9,3305.0,0.13373554]
[1768700345712,1.32818199,3305.8,3305.0,0.13373554]
[1768700345916,0.26952191,3305.7,3305.0,0.13373554]
[1768700346106,1.739,3306.0,3305.0,0.13373554]
[1768700346308,1.32818243,3305.9,3305.0,0.13373554]
[1768700346522,1.32818243,3305.8,3305.0,0.13373554]
[1768700346709,0.26952231,3305.7,3305.0,0.13373554]
[1768700346910,1.739,3306.0,3305.0,0.13373554]
[1768700347111,1.32818444,3305.9,3305.0,0.13373554]
[1768700347416,1.32818444,3305.8,3305.0,0.13373554]
[1768700347620,0.26952241,3305.7,3305.0,0.13373554]
[1768700347916,1.739,3306.0,3305.0,0.13373554]
[1768700348116,1.33267377,3305.9,3305.0,0.13373554]
[1768700348316,1.33267377,3305.8,3305.0,0.13373554]
[1768700348526,0.26952302,3305.7,3305.0,0.13373554]
[1768700348717,1.739,3306.0,3305.0,0.13373554]
[1768700349015,1.33267255,3305.9,3305.0,0.13373554]
[1768700349217,1.33267255,3305.8,3305.0,0.13373554]
[1768700349417,0.26952285,3305.7,3305.0,0.13373554]
[1768700349606,1.739,3306.0,3305.0,0.13373554]
[1768700349808,1.33250088,3305.9,3305.0,0.13373554]
[1768700350009,1.33250088,3305.8,3305.0,0.13373554]
[1768700350306,0.26948812,3305.7,3305.0,0.13373554]
[1768700350509,1.739,3306.0,3305.0,0.13373554]
[1768700350704,1.332506,3305.9,3305.0,0.13373554]
[1768700351010,1.332506,3305.8,3305.0,0.13373554]
[1768700351309,0.26948915,3305.7,3305.0,0.13373554]
[1768700351509,1.739,3306.0,3305.0,0.13373554]
[1768700351809,1.3325055,3305.9,3305.0,0.13373554]
[1768700352108,1.3325055,3305.8,3305.0,0.13373554]
[1768700352313,0.26956412,3305.7,3305.0,0.13373554]
[1768700352514,1.739,3306.0,3305.0,0.13373554]
[1768700352715,1.33287608,3305.9,3305.0,0.13373554]
[1768700352915,1.33287608,3305.8,3305.0,0.13373554]
[1768700353116,0.26956406,3305.7,3305.0,0.13373554]
[1768700353318,1.739,3306.0,3305.0,0.13373554]
[1768700353511,1.33289287,3305.9,3305.0,0.13373554]
[1768700353808,1.33289287,3305.8,3305.0,0.13373554]
[1768700354004,0.26956738,3305.7,3305.0,0.13373554]
[1768700354309,1.739,3306.0,3305.0,0.13373554]
[1768700354510,1.33289266,3305.9,3305.0,0.13373554]
[1768700354718,1.33289266,3305.8,3305.0,0.13373554]
[1768700354922,0.26956733,3305.7,3305.0,0.13373554]
[1768700355112,1.739,3306.0,3305.0,0.13373554]
[1768700355313,1.3328925,3305.9,3305.0,0.13373554]
[1768700355514,1.3328925,3305.8,3305.0,0.13373554]
[1768700355715,0.2695672,3305.7,3305.0,0.13373554]
[1768700355914,1.739,3306.0,3305.0,0.13373554]
[1768700356123,1.3327469,3305.9,3305.0,0.13373554]
[1768700356318,1.3327469,3305.8,3305.0,0.13373554]
[1768700356518,0.26953786,3305.7,3305.0,0.13373554]
[1768700356819,1.739,3306.0,3305.0,0.13373554]
[1768700357019,1.33273502,3305.9,3305.0,0.13373554]
[1768700357221,1.33273502,3305.8,3305.0,0.13373554]
[1768700357424,0.26953545,3305.7,3305.0,0.13373554]
[1768700357624,1.739,3306.0,3305.0,0.13373554]
[1768700357826,1.33273117,3305.9,3305.0,0.13373554]
[1768700358025,1.33273117,3305.8,3305.0,0.13373554]
[1768700358227,0.26953546,3305.7,3305.0,0.13373554]
[1768700358519,1.739,3306.0,3305.0,0.13373554]
[1768700358720,1.33273035,3305.9,3305.0,0.13373554]
[1768700358912,1.33273035,3305.8,3305.0,0.13373554]
[1768700359110,0.2695344,3305.7,3305.0,0.13373554]
[1768700359326,1.739,3306.0,3305.0,0.13373554]
[1768700359518,1.33272966,3305.9,3305.0,0.13373554]
[1768700359719,1.33272966,3305.8,3305.0,0.13373554]
[1768700359928,0.26953424,3305.7,3305.0,0.13373554]
[1768700360224,1.739,3306.0,3305.0,0.13373554]
[1768700360424,1.33273033,3305.9,3305.0,0.13373554]
[1768700360625,1.33273033,3305.8,3305.0,0.13373554]
[1768700360823,0.26953438,3305.7,3305.0,0.13373554]
[1768700361024,1.739,3306.0,3305.0,0.13373554]
[1768700361225,1.33273592,3305.9,3305.0,0.13373554]
[1768700361416,1.33273592,3305.8,3305.0,0.13373554]
[1768700361616,0.26953538,3305.7,3305.0,0.13373554]
[1768700361816,1.739,3306.0,3305.0,0.13373554]
[1768700362116,1.33273565,3305.9,3305.0,0.13373554]
[1768700362316,1.33273565,3305.8,3305.0,0.13373554]
[1768700362527,0.26953544,3305.7,3305.0,0.13373554]
[1768700362727,1.739,3306.0,3305.0,0.13373554]
[1768700362920,1.3327363,3305.9,3305.0,0.13373554]
[1768700363119,1.3327363,3305.8,3305.0,0.13373554]
[1768700363324,0.26953553,3305.7,3305.0,0.13373554]
[1768700363534,1.739,3306.0,3305.0,0.13373554]
[1768700363822,1.33273686,3305.9,3305.0,0.13373554]
[1768700364120,1.33273686,3305.8,3305.0,0.13373554]
[1768700364321,0.26953561,3305.7,3305.0,0.13373554]
[1768700364521,1.739,3306.0,3305.0,0.13373554]
[1768700364720,1.33274286,3305.9,3305.0,0.13373554]
[1768700364921,1.33274286,3305.8,3305.0,0.13373554]
[1768700365122,0.26953664,3305.7,3305.0,0.13373554]
[1768700365322,1.739,3306.0,3305.0,0.13373554]
[1768700365622,1.33274567,3305.9,3305.0,0.13373554]
[1768700365822,1.33274567,3305.8,3305.0,0.13373554]
[1768700366027,0.26953718,3305.7,3305.0,0.13373554]
[1768700366225,1.739,3306.0,3305.0,0.13373554]
[1768700366426,1.33275046,3305.9,3305.0,0.13373554]
[1768700366617,1.33275046,3305.8,3305.0,0.13373554]
[1768700366818,0.26953812,3305.7,3305.0,0.13373554]
[1768700367017,1.739,3306.0,3305.0,0.13373554]
[1768700367317,1.33276027,3305.9,3305.0,0.13373554]
[1768700367522,1.33276027,3305.8,3305.0,0.13373554]
[1768700367725,1.33276027,3305.7,3305.0,0.13373554]
[1768700367918,1.739,3306.0,3305.0,0.13373554]
[1768700368120,1.33257112,3305.9,3305.0,0.13373554]
[1768700368320,1.33257112,3305.8,3305.0,0.13373554]
[1768700368623,1.33257112,3305.7,3305.0,0.13373554]
[1768700368823,1.739,3306.0,3305.0,0.13373554]
[1768700369021,1.3325078,3305.9,3305.0,0.13373554]
[1768700369218,1.3325078,3305.8,3305.0,0.13373554]
[1768700369419,1.3325078,3305.7,3305.0,0.13373554]
[1768700369727,1.739,3306.0,3305.0,0.13373554]
[1768700369923,1.33250569,3305.9,3305.0,0.13373554]
[1768700370123,1.33250569,3305.8,3305.0,0.13373554]
[1768700370323,1.33250569,3305.7,3305.0,0.13373554]
[1768700370524,1.739,3306.0,3305.0,0.13373554]
[1768700370825,1.33247094,3305.9,3305.0,0.13373554]
[1768700371037,1.739,3306.0,3305.0,0.13373554]
[1768700371038,1.33247094,3305.8,3305.0,0.13373554]
[1768700371323,1.33247094,3305.7,3305.0,0.13373554]
[1768700371523,1.739,3306.0,3305.0,0.13373554]
[1768700371822,1.33245279,3305.9,3305.0,0.13373554]
[1768700372023,1.33245279,3305.8,3304.5,0.13060371]
[1768700372222,1.33245279,3305.7,3304.5,0.13060371]
[1768700372520,0.26947899,3305.6,3304.5,0.13060371]
[1768700372721,1.739,3306.0,3304.5,0.13060371]
[1768700372921,1.33240083,3305.9,3304.5,0.13060371]
[1768700373117,1.33240083,3305.8,3304.5,0.13060371]
[1768700373322,1.33240083,3305.7,3304.5,0.13060371]
[1768700373517,1.739,3306.0,3304.5,0.13060371]
[1768700373518,1.33235903,3305.6,3304.5,0.13060371]
[1768700373728,1.739,3306.0,3304.5,0.13060371]
[1768700373926,1.33234849,3305.9,3304.5,0.13060371]
[1768700374123,1.33234849,3305.8,3304.5,0.13060371]
[1768700374323,1.33234849,3305.7,3304.5,0.13060371]
[1768700374523,1.739,3306.0,3304.5,0.13060371]
[1768700374524,1.33234849,3305.6,3304.5,0.13060371]
[1768700374732,1.33234849,3305.5,3304.5,0.13060371]
[1768700374934,1.3322498,3305.4,3304.5,0.13060371]
[1768700375130,3.36872656,3306.0,3304.5,0.13060371]
[1768700375330,1.33222434,3305.9,3304.5,0.13060371]
[1768700375532,1.33222434,3305.8,3304.5,0.13060371]
[1768700375734,1.33222434,3305.7,3304.5,0.13060371]
[1768700376034,1.33222434,3305.6,3304.5,0.13060371]
[1768700376332,1.33222434,3305.5,3304.5,0.13060371]
[1768700376536,1.33222434,3305.4,3304.5,0.13060371]
[1768700376833,3.52001656,3306.0,3304.5,0.13060371]
[1768700377034,1.33175108,3305.9,3304.5,0.13060371]
[1768700377234,1.33175108,3305.8,3304.5,0.13060371]
[1768700377427,1.33175108,3305.7,3304.5,0.13060371]
[1768700377628,1.33171545,3305.6,3304.5,0.13060371]
[1768700377829,1.33171545,3305.5,3304.5,0.13060371]
[1768700378030,1.33171545,3305.4,3304.5,0.13060371]
[1768700378236,3.52001656,3306.0,3304.5,0.13060371]
[1768700378435,1.32951625,3305.9,3304.5,0.13060371]
[1768700378633,1.32951625,3305.8,3304.5,0.13060371]
[1768700378835,1.32951625,3305.7,3304.5,0.13060371]
[1768700379034,1.32951625,3305.6,3304.5,0.13060371]
[1768700379240,1.32951625,3305.5,3304.5,0.13060371]
[1768700379436,1.32951625,3305.4,3304.5,0.13060371]
[1768700379629,3.52001656,3306.0,3304.5,0.13060371]
[1768700379932,1.32940221,3305.9,3304.5,0.13060371]
[1768700380129,1.32940221,3305.8,3304.5,0.13060371]
[1768700380329,1.32940221,3305.7,3304.5,0.13060371]
[1768700380627,3.52001656,3306.0,3304.5,0.13060371]
[1768700380628,1.32940221,3305.6,3304.5,0.13060371]
[1768700380832,1.32940221,3305.5,3304.5,0.13060371]
[1768700381032,1.32940221,3305.4,3304.5,0.13060371]
[1768700381233,6.54801656,3306.0,3304.5,0.13060371]
[1768700381541,1.32923937,3305.9,3304.5,0.13060371]
[1768700381733,1.32923937,3305.8,3304.5,0.13060371]
[1768700381934,1.32923937,3305.7,3304.5,0.13060371]
[1768700382134,1.32923937,3305.6,3304.5,0.13060371]
[1768700382334,1.32923937,3305.5,3304.5,0.13060371]
[1768700382535,0.26922249,3305.4,3304.5,0.13060371]
[1768700382833,6.54801656,3306.0,3304.5,0.13060371]
[1768700383133,1.32917168,3305.9,3304.5,0.13060371]
[1768700383329,1.32917168,3305.8,3304.5,0.13060371]
[1768700383533,1.32917168,3305.7,3304.5,0.13060371]
[1768700383734,1.32917168,3305.6,3304.5,0.13060371]
[1768700383935,0.26920886,3305.5,3304.5,0.13060371]
[1768700384136,4.91829,3306.0,3304.5,0.13060371]
[1768700384345,1.32912266,3305.9,3304.5,0.13060371]
[1768700384545,1.32912266,3305.8,3304.5,0.13060371]
[1768700384743,1.32912266,3305.7,3304.5,0.13060371]
[1768700384946,1.32912266,3305.6,3304.5,0.13060371]
[1768700385144,0.26919895,3305.5,3304.5,0.13060371]
[1768700385345,4.91829,3306.0,3304.5,0.13060371]
[1768700385547,1.32906047,3305.9,3304.5,0.13060371]
[1768700385843,1.32906047,3305.8,3304.5,0.13060371]
[1768700386056,1.32906047,3305.7,3304.5,0.13060371]
[1768700386255,1.32906047,3305.6,3304.5,0.13060371]
[1768700386455,0.26918639,3305.5,3304.5,0.13060371]
[1768700386656,4.91829,3306.0,3304.5,0.13060371]
[1768700386859,1.32902483,3305.9,3304.5,0.13060371]
[1768700387060,1.32902483,3305.8,3304.5,0.13060371]
[1768700387259,1.32902483,3305.7,3304.5,0.13060371]
[1768700387460,1.32902483,3305.6,3304.5,0.13060371]
[1768700387654,0.26917922,3305.5,3304.5,0.13060371]
[1768700387952,4.91829,3306.0,3304.5,0.13060371]
[1768700388152,1.32901773,3305.9,3304.5,0.13060371]
[1768700388351,1.32901773,3305.8,3304.5,0.13060371]
[1768700388553,1.32901871,3305.7,3304.5,0.13060371]
[1768700388753,1.32901871,3305.6,3304.5,0.13060371]
[1768700388949,0.26917879,3305.5,3304.5,0.13060371]
[1768700389152,4.91829,3306.0,3304.5,0.13060371]
[1768700389351,1.32901433,3305.9,3304.5,0.13060371]
[1768700389560,1.32901433,3305.8,3304.5,0.13060371]
[1768700389759,1.32901433,3305.7,3304.5,0.13060371]
[1768700389951,1.32901433,3305.6,3304.5,0.13060371]
[1768700390152,0.26917462,3305.5,3304.5,0.13060371]
[1768700390353,4.91829,3306.0,3304.5,0.13060371]
[1768700390554,1.32904458,3305.9,3304.5,0.13060371]
[1768700390757,1.32904458,3305.8,3304.5,0.13060371]
[1768700390950,1.32904458,3305.7,3304.5,0.13060371]
[1768700391151,1.32904458,3305.6,3304.5,0.13060371]
[1768700391359,0.26918325,3305.5,3304.5,0.13060371]
[1768700391562,4.91829,3306.0,3304.5,0.13060371]
[1768700391761,1.3290822,3305.9,3304.5,0.13060371]
[1768700391962,1.3290822,3305.8,3304.5,0.13060371]
[1768700392261,1.3290822,3305.7,3304.5,0.13060371]
[1768700392457,1.3290822,3305.6,3304.5,0.13060371]
[1768700392660,0.26919089,3305.5,3304.5,0.13060371]
[1768700392961,4.91829,3306.0,3304.5,0.13060371]
[1768700393163,1.32890222,3305.9,3304.5,0.13060371]
[1768700393364,1.32890222,3305.8,3304.5,0.13060371]
[1768700393663,1.32890222,3305.7,3304.5,0.13060371]
[1768700393861,1.32890222,3305.6,3304.5,0.13060371]
[1768700394062,0.26915446,3305.5,3304.5,0.13060371]
[1768700394259,4.91829,3306.0,3304.5,0.13060371]
[1768700394459,1.32903966,3305.9,3304.5,0.13060371]
[1768700394664,1.32903966,3305.8,3304.5,0.13060371]
[1768700394864,1.32903966,3305.7,3304.5,0.13060371]
[1768700395063,1.32903966,3305.6,3304.5,0.13060371]
[1768700395366,0.26918235,3305.5,3304.5,0.13060371]
[1768700395564,4.91829,3306.0,3304.5,0.13060371]
[1768700395867,1.32913312,3305.9,3304.5,0.13060371]
[1768700396063,1.32913312,3305.8,3304.5,0.13060371]
[1768700396267,1.32913312,3305.7,3304.5,0.13060371]
[1768700396469,1.32913312,3305.6,3304.5,0.13060371]
[1768700396664,1.32913312,3305.5,3304.5,0.13060371]
[1768700396869,4.91829,3306.0,3304.5,0.13060371]
[1768700397060,1.329248,3305.9,3304.5,0.13060371]
[1768700397260,1.329248,3305.8,3304.5,0.13060371]
[1768700397470,1.329248,3305.7,3304.5,0.13060371]
[1768700397661,1.329248,3305.6,3304.5,0.13060371]
[1768700397861,1.329248,3305.5,3304.5,0.13060371]
[1768700398061,4.91829,3306.0,3304.5,0.13060371]
[1768700398263,1.32930996,3305.9,3304.5,0.13060371]
[1768700398568,1.32930996,3305.8,3304.5,0.13060371]
[1768700398865,1.32930996,3305.7,3304.5,0.13060371]
[1768700399070,1.32930996,3305.6,3304.5,0.13060371]
[1768700399263,1.32930996,3305.5,3304.5,0.13060371]
[1768700399468,0.97755006,3305.8,3304.5,0.13060371]
[1768700399668,1.3294818,3305.7,3304.5,0.13060371]
[1768700399865,1.3294818,3305.6,3304.5,0.13060371]
[1768700400165,1.3294818,3305.5,3304.5,0.13060371]
[1768700400365,0.97755006,3305.8,3304.5,0.13060371]
[1768700400566,1.32957684,3305.7,3304.5,0.13060371]
[1768700400865,1.32957684,3305.6,3304.5,0.13060371]
[1768700401064,1.32957684,3305.5,3304.5,0.13060371]
[1768700401270,0.97755006,3305.8,3304.5,0.13060371]
[1768700401469,1.32971976,3305.7,3304.5,0.13060371]
[1768700401662,1.32971976,3305.6,3304.5,0.13060371]
[1768700401864,1.32971976,3305.5,3304.5,0.13060371]
[1768700402074,0.97755006,3305.8,3304.5,0.13060371]
[1768700402267,1.32972075,3305.7,3304.5,0.13060371]
[1768700402468,1.32972075,3305.6,3304.5,0.13060371]
[1768700402662,1.32972075,3305.5,3304.5,0.13060371]
[1768700402863,0.26934416,3305.4,3304.5,0.13060371]
[1768700403065,0.97755006,3305.8,3304.5,0.13060371]
[1768700403266,1.32985133,3305.7,3304.5,0.13060371]
[1768700403466,1.32985133,3305.6,3304.5,0.13060371]
[1768700403669,1.32985133,3305.5,3304.5,0.13060371]
[1768700403871,0.26934857,3305.4,3304.5,0.13060371]
[1768700404072,0.97755006,3305.8,3304.5,0.13060371]
[1768700404371,1.33000834,3305.7,3304.5,0.13060371]
[1768700404573,1.33000834,3305.6,3304.5,0.13060371]
[1768700404772,1.33000834,3305.5,3304.5,0.13060371]
[1768700405073,1.33000834,3305.4,3304.5,0.13060371]
[1768700405368,0.97755006,3305.8,3304.5,0.13060371]
[1768700405574,1.33034718,3305.7,3304.5,0.13060371]
[1768700405775,1.33034718,3305.6,3304.5,0.13060371]
[1768700405964,1.33034718,3305.5,3304.5,0.13060371]
[1768700406168,1.33034718,3305.4,3304.5,0.13060371]
[1768700406466,0.97755006,3305.8,3304.5,0.13060371]
[1768700406666,1.3303125,3305.7,3304.5,0.13060371]
[1768700406867,1.3303125,3305.6,3304.5,0.13060371]
[1768700407069,1.3303125,3305.5,3304.5,0.13060371]
[1768700407366,1.3303125,3305.4,3304.5,0.13060371]
[1768700407573,0.97755006,3305.8,3304.5,0.13060371]
[1768700407777,1.33100385,3305.7,3304.5,0.13060371]
[1768700407969,1.33100385,3305.6,3304.5,0.13060371]
[1768700408271,1.33100385,3305.5,3304.5,0.13060371]
[1768700408569,1.33100385,3305.4,3304.5,0.13060371]
[1768700408771,0.97755006,3305.8,3304.5,0.13060371]
[1768700408971,1.33098394,3305.7,3304.5,0.13060371]
[1768700409169,1.33098394,3305.6,3304.5,0.13060371]
[1768700409370,1.33098394,3305.5,3304.5,0.13060371]
[1768700409571,1.33098394,3305.4,3304.5,0.13060371]
[1768700409772,0.97755006,3305.8,3304.5,0.13060371]
[1768700409971,1.33077156,3305.7,3304.5,0.13060371]
[1768700410270,1.33077156,3305.6,3304.5,0.13060371]
[1768700410470,1.33077156,3305.5,3304.5,0.13060371]
[1768700410680,1.33077156,3305.4,3304.5,0.13060371]
[1768700410980,0.97755006,3305.8,3304.5,0.13060371]
[1768700411168,1.33074395,3305.7,3304.5,0.13060371]
[1768700411365,0.97755006,3305.5,3304.5,0.13060371]
[1768700411570,1.33074395,3305.4,3304.5,0.13060371]
[1768700411778,0.97755006,3305.8,3304.5,0.13060371]
[1768700411980,1.33072883,3305.7,3304.5,0.13060371]
[1768700412181,1.33072883,3305.6,3304.5,0.13060371]
[1768700412381,1.33072883,3305.5,3304.5,0.13060371]
[1768700412677,1.33072883,3305.4,3304.5,0.13060371]
[1768700412877,0.97755006,3305.8,3304.5,0.13060371]
[1768700413079,1.33064142,3305.7,3304.5,0.13060371]
[1768700413276,1.33064142,3305.6,3304.5,0.13060371]
[1768700413478,1.33064142,3305.5,3304.5,0.13060371]
[1768700413674,1.33064142,3305.4,3304.5,0.13060371]
[1768700413879,1.33064142,3305.3,3304.5,0.13060371]
[1768700414180,0.26936419,3305.2,3304.5,0.13060371]
[1768700414380,0.97755006,3305.6,3304.5,0.13060371]
[1768700414583,1.33049958,3305.5,3304.5,0.13060371]
[1768700414779,1.33049958,3305.4,3304.5,0.13060371]
[1768700414980,1.33049958,3305.3,3304.5,0.13060371]
[1768700415282,0.26933649,3305.2,3304.5,0.13060371]
[1768700415473,0.97755006,3305.6,3304.5,0.13060371]
[1768700415673,1.33263817,3305.5,3304.5,0.13060371]
[1768700415972,1.33263817,3305.4,3304.5,0.13060371]
[1768700416173,1.33263817,3305.3,3304.5,0.13060371]
[1768700416384,0.27153391,3305.2,3304.5,0.13060371]
[1768700416682,0.97755006,3305.6,3304.5,0.13060371]
[1768700416867,1.33259339,3305.5,3304.5,0.13060371]
[1768700417072,1.33259356,3305.4,3304.5,0.13060371]
[1768700417283,1.33259356,3305.3,3304.5,0.13060371]
[1768700417480,0.27152495,3305.2,3304.5,0.13060371]
[1768700417682,0.97755006,3305.6,3304.5,0.13060371]
[1768700417981,1.33254838,3305.5,3304.5,0.13060371]
[1768700418180,1.33254838,3305.4,3304.5,0.13060371]
[1768700418478,1.33254838,3305.3,3304.5,0.13060371]
[1768700418680,0.27151565,3305.2,3304.5,0.13060371]
[1768700418880,0.97755006,3305.6,3304.5,0.13060371]
[1768700419076,1.33251639,3305.5,3304.5,0.13060371]
[1768700419276,1.33251639,3305.4,3304.5,0.13060371]
[1768700419579,1.33251639,3305.3,3304.5,0.13060371]
[1768700419783,1.33251639,3305.2,3304.5,0.13060371]
[1768700419982,0.97755006,3305.6,3304.5,0.13060371]
[1768700420178,1.33244737,3305.5,3304.5,0.13060371]
[1768700420471,1.33244737,3305.4,3304.5,0.13060371]
[1768700420676,1.33244737,3305.3,3304.5,0.13060371]
[1768700420976,1.33244737,3305.2,3304.5,0.13060371]
[1768700421176,0.97755006,3305.6,3304.5,0.13060371]
[1768700421385,1.33233566,3305.5,3304.5,0.13060371]
[1768700421581,1.33233566,3305.4,3304.5,0.13060371]
[1768700421781,1.33233566,3305.3,3304.5,0.13060371]
[1768700421979,1.33233473,3305.2,3304.5,0.13060371]
[1768700422179,0.97755006,3305.6,3304.5,0.13060371]
[1768700422381,1.33215104,3305.5,3304.5,0.13060371]
[1768700422681,1.33215104,3305.4,3304.5,0.13060371]
[1768700422880,1.33215104,3305.3,3304.5,0.13060371]
[1768700423084,1.33215104,3305.2,3304.5,0.13060371]
[1768700423387,0.97755006,3305.6,3304.5,0.13060371]
[1768700423684,1.33211559,3305.5,3304.5,0.13060371]
[1768700423885,1.33211559,3305.4,3304.5,0.13060371]
[1768700424086,1.33211559,3305.3,3304.5,0.13060371]
[1768700424288,0.97755006,3305.6,3304.5,0.13060371]
[1768700424485,1.33195513,3305.5,3304.5,0.13060371]
[1768700424685,1.33195513,3305.4,3304.5,0.13060371]
[1768700424887,1.33195513,3305.3,3304.5,0.13060371]
[1768700425087,0.97755006,3305.6,3304.5,0.13060371]
[1768700425286,1.33191627,3305.5,3304.5,0.13060371]
[1768700425488,1.33191627,3305.4,3304.5,0.13060371]
[1768700425685,1.33191627,3305.3,3304.5,0.13060371]
[1768700425886,0.97755006,3305.6,3304.5,0.13060371]
[1768700426088,1.33190082,3305.5,3304.5,0.13060371]
[1768700426287,1.33190082,3305.4,3304.5,0.13060371]
[1768700426487,1.33190082,3305.3,3304.5,0.13060371]
[1768700426689,0.97755006,3305.6,3304.5,0.13060371]
[1768700426890,1.33188912,3305.5,3304.5,0.13060371]
[1768700427188,1.33188912,3305.4,3304.5,0.13060371]
[1768700427488,1.33188912,3305.3,3304.5,0.13060371]
[1768700427790,0.97755006,3305.6,3304.5,0.13060371]
[1768700427991,1.33188846,3305.5,3304.5,0.13060371]
[1768700428189,1.33188846,3305.4,3304.5,0.13060371]
[1768700428391,1.33188846,3305.3,3304.5,0.13060371]
[1768700428589,0.97755006,3305.6,3304.5,0.13060371]
[1768700428895,1.33189401,3305.5,3304.5,0.13060371]
[1768700429085,1.33189401,3305.4,3304.5,0.13060371]
[1768700429285,1.33189401,3305.3,3304.5,0.13060371]
[1768700429586,0.27138262,3305.2,3304.5,0.13060371]
[1768700429888,0.97755006,3305.4,3304.5,0.13060371]
[1768700430195,1.33170595,3305.3,3304.5,0.13060371]
[1768700430496,0.27134738,3305.2,3304.5,0.13060371]
[1768700430688,0.97755006,3305.4,3304.5,0.13060371]
[1768700430989,1.33158282,3305.3,3304.5,0.13060371]
[1768700431188,0.27132217,3305.2,3304.5,0.13060371]
[1768700431384,0.97755006,3305.4,3304.1,0.00296285]
[1768700431595,0.97755006,3305.1,3304.1,0.14438117]
[1768700431798,0.27129504,3305.0,3304.1,0.14438117]
[1768700432093,0.97755006,3305.1,3304.1,0.14438117]
[1768700433898,0.1513,3305.7,3304.1,0.14438117]
[1768700434088,1.33117349,3305.6,3304.6,0.13802493]
[1768700434285,1.33117349,3305.5,3304.6,0.13802493]
[1768700434596,1.33117349,3305.4,3304.6,0.13802493]
[1768700434800,1.33117349,3305.3,3304.6,0.13802493]
[1768700434993,0.27124322,3305.2,3304.6,0.13802493]
[1768700435192,0.97755006,3305.6,3304.6,0.13802493]
[1768700435394,1.33104436,3305.5,3304.6,0.13802493]
[1768700435594,1.33104436,3305.4,3304.6,0.13802493]
[1768700435797,1.33104436,3305.3,3304.6,0.13802493]
[1768700436096,0.27121136,3305.2,3304.6,0.13802493]
[1768700436289,0.97755006,3305.6,3304.6,0.13802493]
[1768700436489,1.33104147,3305.5,3304.6,0.13802493]
[1768700436787,1.33104147,3305.4,3304.6,0.13802493]
[1768700436984,1.33104147,3305.3,3304.6,0.13802493]
[1768700437187,0.97755006,3305.6,3304.6,0.13802493]
[1768700437397,1.3310408,3305.5,3304.6,0.13802493]
[1768700437599,1.3310408,3305.4,3304.6,0.13802493]
[1768700437898,1.3310408,3305.3,3304.6,0.13802493]
[1768700438095,0.97755006,3305.6,3304.6,0.13802493]
[1768700438297,1.33279991,3305.5,3304.6,0.13802493]
[1768700438492,1.33279991,3305.4,3304.6,0.13802493]
[1768700438703,1.33279991,3305.3,3304.6,0.13802493]
[1768700438904,0.97755006,3305.6,3304.6,0.13802493]
[1768700439200,1.33281468,3305.5,3304.6,0.13802493]
[1768700439399,1.33281468,3305.4,3304.6,0.13802493]
[1768700439701,1.33281468,3305.3,3304.6,0.13802493]
[1768700439895,0.27121239,3305.2,3304.6,0.13802493]
[1768700440091,0.1513,3305.7,3304.6,0.13802493]
[1768700440291,0.97755006,3305.4,3304.2,0.13802493]
[1768700440497,1.332809,3305.3,3304.2,0.13802493]
[1768700440704,1.332809,3305.2,3304.2,0.13802493]
[1768700440892,0.97755006,3305.4,3304.2,0.13802493]
[1768700441190,1.33281533,3305.3,3304.2,0.13802493]
[1768700441391,1.33281533,3305.2,3304.2,0.13802493]
[1768700441600,0.97755006,3305.4,3304.2,0.13802493]
[1768700441797,1.33283624,3305.3,3304.2,0.13802493]
[1768700441997,1.33283624,3305.2,3304.2,0.13802493]
[1768700442198,0.97755006,3305.5,3304.2,0.13802493]
[1768700442396,1.33287087,3305.4,3304.2,0.13802493]
[1768700442593,1.33287087,3305.3,3304.2,0.13802493]
[1768700442794,1.33287087,3305.2,3304.2,0.13802493]
[1768700442995,0.97755006,3305.5,3304.2,0.13802493]
[1768700443194,1.33287383,3305.4,3304.2,0.13802493]
[1768700443403,0.1513,3305.7,3304.3,0.13802493]
[1768700443404,1.33288701,3305.3,3304.3,0.13802493]
[1768700443701,0.27123829,3305.2,3304.3,0.13802493]
[1768700443902,2.86385006,3305.7,3304.3,0.13802493]
[1768700444103,1.33295306,3305.6,3304.3,0.13802493]
[1768700444402,1.33295306,3305.5,3304.3,0.13802493]
[1768700444700,1.33295306,3305.4,3304.3,0.13802493]
[1768700444901,1.33295306,3305.3,3304.3,0.13802493]
[1768700445103,1.33295306,3305.2,3304.3,0.13802493]
[1768700445295,2.86385006,3305.7,3304.3,0.13802493]